[Event "*** Titled Tuesday Blitz"]
[Site "Chess.com"]
[Date "2020.05.12"]
[Round "8"]
[White "SameerMujumdar"]
[Black "manmanlai1"]
[Result "0-1"]
[WhiteElo "2184"]
[BlackElo "2335"]
[TimeControl "180+1"]
[EndTime "11:31:18 PDT"]
[Termination "manmanlai1 won by resignation"]

1. c4 {[%clk 0:03:00.6]} 1... e5 {[%clk 0:02:57.8]} 2. g3 {[%clk 0:02:59.7]}
2... c6 {[%clk 0:02:43.3]} 3. Bg2 {[%clk 0:02:54.8]} 3... d5 {[%clk 0:02:43.1]}
4. Nf3 {[%clk 0:02:48.8]} 4... Bd6 {[%clk 0:02:40.7]} 5. cxd5 {[%clk 0:02:39]}
5... cxd5 {[%clk 0:02:41.6]} 6. d4 {[%clk 0:02:36.2]} 6... e4 {[%clk 0:02:41.1]}
7. Nfd2 {[%clk 0:02:27.8]} 7... Nc6 {[%clk 0:02:39]} 8. Nc3 {[%clk 0:02:15.5]}
8... Nf6 {[%clk 0:02:35.4]} 9. O-O {[%clk 0:02:12.6]} 9... O-O {[%clk 0:02:34]}
10. Nb3 {[%clk 0:02:11.9]} 10... Bf5 {[%clk 0:02:27.8]} 11. Bg5 {[%clk
0:02:10.5]} 11... Be7 {[%clk 0:02:16.1]} 12. e3 {[%clk 0:01:59.4]} 12... h6
{[%clk 0:02:12.5]} 13. Bxf6 {[%clk 0:01:55.9]} 13... Bxf6 {[%clk 0:02:13.4]} 14.
Rc1 {[%clk 0:01:53.3]} 14... Rc8 {[%clk 0:02:11.7]} 15. a3 {[%clk 0:01:51.8]}
15... Be7 {[%clk 0:02:09.9]} 16. Nd2 {[%clk 0:01:39.4]} 16... b6 {[%clk
0:02:04.4]} 17. Qb3 {[%clk 0:01:38.1]} 17... Be6 {[%clk 0:02:03.5]} 18. Qa2
{[%clk 0:01:34]} 18... Qd7 {[%clk 0:01:58.2]} 19. Ndxe4 {[%clk 0:01:27.9]} 19...
dxe4 {[%clk 0:01:32.9]} 20. d5 {[%clk 0:01:28.8]} 20... Bf5 {[%clk 0:01:28]} 21.
dxc6 {[%clk 0:01:27.2]} 21... Rxc6 {[%clk 0:01:28.3]} 22. Nxe4 {[%clk
0:01:25.2]} 22... Rxc1 {[%clk 0:01:27.7]} 23. Rxc1 {[%clk 0:01:25.9]} 23... Rc8
{[%clk 0:01:26.4]} 24. Rxc8+ {[%clk 0:01:21]} 24... Qxc8 {[%clk 0:01:27.3]} 25.
h4 {[%clk 0:01:14.9]} 25... Qc1+ {[%clk 0:01:21.8]} 26. Kh2 {[%clk 0:01:14.4]}
26... Be6 {[%clk 0:01:22]} 27. b3 {[%clk 0:01:10.9]} 27... Qxa3 {[%clk 0:01:22]}
28. Qd2 {[%clk 0:00:57.5]} 28... Qxb3 {[%clk 0:01:17.2]} 29. f4 {[%clk
0:00:49.4]} 29... a5 {[%clk 0:01:11]} 30. Bh3 {[%clk 0:00:38.2]} 30... Bxh3
{[%clk 0:01:04.1]} 31. Kxh3 {[%clk 0:00:37.4]} 31... Qe6+ {[%clk 0:01:04]} 0-1

[Event "*** Titled Tuesday Blitz"]
[Site "Chess.com"]
[Date "2020.05.12"]
[Round "8"]
[White "okriak"]
[Black "Love_craft"]
[Result "1-0"]
[WhiteElo "2796"]
[BlackElo "2609"]
[TimeControl "180+1"]
[EndTime "11:31:19 PDT"]
[Termination "okriak won by resignation"]

1. Nf3 {[%clk 0:03:00.9]} 1... Nf6 {[%clk 0:02:59.3]} 2. c4 {[%clk 0:03:00.3]}
2... g6 {[%clk 0:02:56.4]} 3. Nc3 {[%clk 0:03:00.4]} 3... Bg7 {[%clk 0:02:56.8]}
4. e4 {[%clk 0:03:00.2]} 4... d6 {[%clk 0:02:56.8]} 5. d4 {[%clk 0:03:00.6]}
5... O-O {[%clk 0:02:57.3]} 6. h3 {[%clk 0:03:01.2]} 6... Nbd7 {[%clk
0:02:57.7]} 7. Bg5 {[%clk 0:02:59.7]} 7... h6 {[%clk 0:02:56.8]} 8. Be3 {[%clk
0:02:59.2]} 8... e5 {[%clk 0:02:56.3]} 9. d5 {[%clk 0:02:59]} 9... Ne8 {[%clk
0:02:43.7]} 10. g4 {[%clk 0:02:58.6]} 10... Kh7 {[%clk 0:02:39.4]} 11. Bd3
{[%clk 0:02:57.9]} 11... c5 {[%clk 0:02:29.5]} 12. Nd2 {[%clk 0:02:55.1]} 12...
Bf6 {[%clk 0:02:26.4]} 13. h4 {[%clk 0:02:52.7]} 13... Be7 {[%clk 0:02:13]} 14.
h5 {[%clk 0:02:51.4]} 14... Bg5 {[%clk 0:02:00.5]} 15. hxg6+ {[%clk 0:02:51.2]}
15... fxg6 {[%clk 0:02:01.4]} 16. Qe2 {[%clk 0:02:51.3]} 16... Kg7 {[%clk
0:01:58.4]} 17. Nf3 {[%clk 0:02:49.2]} 17... Bxe3 {[%clk 0:01:56.7]} 18. Qxe3
{[%clk 0:02:49.1]} 18... g5 {[%clk 0:01:21.7]} 19. Nd2 {[%clk 0:02:46.8]} 19...
Ndf6 {[%clk 0:01:05.2]} 20. f3 {[%clk 0:02:46]} 20... Ng8 {[%clk 0:00:58.8]} 21.
Nf1 {[%clk 0:02:43.3]} 21... Ne7 {[%clk 0:00:57.9]} 22. Ng3 {[%clk 0:02:43.4]}
22... Ng6 {[%clk 0:00:58.1]} 23. Nf5+ {[%clk 0:02:43]} 23... Bxf5 {[%clk
0:00:57.7]} 24. exf5 {[%clk 0:02:43.3]} 24... Nf4 {[%clk 0:00:57.8]} 25. O-O-O
{[%clk 0:02:38.1]} 25... Nf6 {[%clk 0:00:53.2]} 26. Rh2 {[%clk 0:02:38]} 26...
Rh8 {[%clk 0:00:51.4]} 27. Rdh1 {[%clk 0:02:37.5]} 27... a6 {[%clk 0:00:48.9]}
28. Ne2 {[%clk 0:02:27.1]} 28... b5 {[%clk 0:00:43.7]} 29. Nxf4 {[%clk
0:02:25.8]} 29... exf4 {[%clk 0:00:38.7]} 30. Qd2 {[%clk 0:02:25.1]} 30... bxc4
{[%clk 0:00:24.4]} 31. Bxc4 {[%clk 0:02:24.8]} 31... a5 {[%clk 0:00:13.6]} 32.
Re1 {[%clk 0:02:24.4]} 32... Qd7 {[%clk 0:00:07.8]} 33. Re6 {[%clk 0:02:23.8]}
33... a4 {[%clk 0:00:07.2]} 34. Rhe2 {[%clk 0:02:22.9]} 34... Rhe8 {[%clk
0:00:05.2]} 35. Qe1 {[%clk 0:02:22.8]} 35... Rxe6 {[%clk 0:00:05.3]} 36. fxe6
{[%clk 0:02:19.3]} 36... Qe7 {[%clk 0:00:04.9]} 37. Qc3 {[%clk 0:02:15.7]} 37...
a3 {[%clk 0:00:05.1]} 38. bxa3 {[%clk 0:02:15.1]} 38... Qa7 {[%clk 0:00:04.2]}
39. e7 {[%clk 0:02:10.9]} 39... Re8 {[%clk 0:00:03.9]} 40. Re6 {[%clk
0:02:10.4]} 1-0

[Event "*** Titled Tuesday Blitz"]
[Site "Chess.com"]
[Date "2020.05.12"]
[Round "8"]
[White "swimmerchess"]
[Black "Azerichess"]
[Result "0-1"]
[WhiteElo "2841"]
[BlackElo "3052"]
[TimeControl "180+1"]
[EndTime "11:31:20 PDT"]
[Termination "Azerichess won by resignation"]

1. e4 {[%clk 0:03:00.9]} 1... e5 {[%clk 0:02:59.6]} 2. Nf3 {[%clk 0:03:01.1]}
2... Nc6 {[%clk 0:03:00.1]} 3. Bb5 {[%clk 0:03:01.7]} 3... g6 {[%clk 0:03:00.4]}
4. c3 {[%clk 0:03:01.5]} 4... a6 {[%clk 0:02:59.1]} 5. Ba4 {[%clk 0:03:01.7]}
5... Bg7 {[%clk 0:02:59.4]} 6. d4 {[%clk 0:03:02.3]} 6... exd4 {[%clk
0:02:59.7]} 7. cxd4 {[%clk 0:03:03.2]} 7... b5 {[%clk 0:03:00.3]} 8. Bb3 {[%clk
0:03:03.7]} 8... Nge7 {[%clk 0:02:53.4]} 9. d5 {[%clk 0:03:03.8]} 9... Na5
{[%clk 0:02:51.3]} 10. Bd2 {[%clk 0:03:04.4]} 10... Nxb3 {[%clk 0:02:49.7]} 11.
Qxb3 {[%clk 0:03:05.3]} 11... c5 {[%clk 0:02:46.4]} 12. d6 {[%clk 0:02:58.3]}
12... Nc6 {[%clk 0:02:42.2]} 13. Bc3 {[%clk 0:02:55.8]} 13... c4 {[%clk
0:02:27.1]} 14. Qd1 {[%clk 0:02:54.9]} 14... f6 {[%clk 0:02:26.7]} 15. O-O
{[%clk 0:02:48.1]} 15... O-O {[%clk 0:02:23.7]} 16. a4 {[%clk 0:02:33.5]} 16...
Rb8 {[%clk 0:02:19.4]} 17. axb5 {[%clk 0:02:27.8]} 17... axb5 {[%clk 0:02:20.3]}
18. Nd4 {[%clk 0:02:21.1]} 18... b4 {[%clk 0:02:07.1]} 19. Be1 {[%clk 0:01:49]}
19... f5 {[%clk 0:02:03.7]} 20. Nxc6 {[%clk 0:01:42.9]} 20... dxc6 {[%clk
0:02:04.6]} 21. Qc2 {[%clk 0:01:38.1]} 21... Be6 {[%clk 0:01:46.4]} 22. exf5
{[%clk 0:01:14.4]} 22... Rxf5 {[%clk 0:01:46.1]} 23. Nd2 {[%clk 0:01:14]} 23...
b3 {[%clk 0:01:44.4]} 24. Qe4 {[%clk 0:00:57.5]} 24... Bd5 {[%clk 0:01:42]} 25.
Qe2 {[%clk 0:00:29.4]} 25... Bxb2 {[%clk 0:01:28]} 26. Rb1 {[%clk 0:00:29.5]}
26... c3 {[%clk 0:01:28.4]} 27. Nc4 {[%clk 0:00:22.5]} 27... c2 {[%clk
0:01:15.8]} 0-1

[Event "*** Titled Tuesday Blitz"]
[Site "Chess.com"]
[Date "2020.05.12"]
[Round "8"]
[White "martabartel"]
[Black "Aradej"]
[Result "1-0"]
[WhiteElo "2299"]
[BlackElo "2470"]
[TimeControl "180+1"]
[EndTime "11:31:20 PDT"]
[Termination "martabartel won by resignation"]

1. d4 {[%clk 0:02:57.5]} 1... Nf6 {[%clk 0:02:59.3]} 2. Nf3 {[%clk 0:02:57.4]}
2... g6 {[%clk 0:02:58.7]} 3. c4 {[%clk 0:02:56.9]} 3... Bg7 {[%clk 0:02:58.7]}
4. Nc3 {[%clk 0:02:57]} 4... c5 {[%clk 0:02:59.2]} 5. d5 {[%clk 0:02:54.7]} 5...
O-O {[%clk 0:02:59.1]} 6. Bg5 {[%clk 0:02:53.9]} 6... d6 {[%clk 0:02:58.4]} 7.
e3 {[%clk 0:02:53.1]} 7... e6 {[%clk 0:02:57.8]} 8. Be2 {[%clk 0:02:47.2]} 8...
exd5 {[%clk 0:02:57.9]} 9. cxd5 {[%clk 0:02:46.1]} 9... h6 {[%clk 0:02:50.6]}
10. Bh4 {[%clk 0:02:44.1]} 10... a6 {[%clk 0:02:50.8]} 11. a4 {[%clk 0:02:40.6]}
11... g5 {[%clk 0:02:46.3]} 12. Bg3 {[%clk 0:02:39.9]} 12... Nh5 {[%clk
0:02:45.7]} 13. Nd2 {[%clk 0:02:35.2]} 13... Nxg3 {[%clk 0:02:45]} 14. hxg3
{[%clk 0:02:35]} 14... Nd7 {[%clk 0:02:44.8]} 15. Nc4 {[%clk 0:02:26.5]} 15...
Ne5 {[%clk 0:02:42.6]} 16. O-O {[%clk 0:02:18.3]} 16... Nxc4 {[%clk 0:02:39.8]}
17. Bxc4 {[%clk 0:02:17.4]} 17... Rb8 {[%clk 0:02:40.4]} 18. Qc2 {[%clk
0:01:56.1]} 18... Bd7 {[%clk 0:02:39.7]} 19. a5 {[%clk 0:01:51]} 19... Re8
{[%clk 0:02:36.1]} 20. Rfd1 {[%clk 0:01:48.1]} 20... h5 {[%clk 0:02:33.6]} 21.
Ra2 {[%clk 0:01:39.2]} 21... h4 {[%clk 0:02:31.6]} 22. gxh4 {[%clk 0:01:34.8]}
22... gxh4 {[%clk 0:02:31.7]} 23. Ne2 {[%clk 0:01:34.5]} 23... Qg5 {[%clk
0:02:27]} 24. e4 {[%clk 0:01:21]} 24... Be5 {[%clk 0:02:24.9]} 25. Ra3 {[%clk
0:01:18]} 25... Kf8 {[%clk 0:02:15.2]} 26. Qd2 {[%clk 0:01:11.7]} 26... Qg6
{[%clk 0:02:09.3]} 27. Bd3 {[%clk 0:01:07.6]} 27... Bh3 {[%clk 0:02:03.2]} 28.
g3 {[%clk 0:00:58.2]} 28... hxg3 {[%clk 0:02:02.1]} 29. f4 {[%clk 0:00:57.8]}
29... Bg7 {[%clk 0:01:57]} 30. Bc2 {[%clk 0:00:48.6]} 30... Bg4 {[%clk
0:01:46.9]} 31. Rxg3 {[%clk 0:00:46.7]} 31... Qh5 {[%clk 0:01:46.7]} 32. Re1
{[%clk 0:00:41.8]} 32... Ke7 {[%clk 0:01:45.6]} 33. e5 {[%clk 0:00:34.9]} 33...
Rg8 {[%clk 0:01:45.4]} 34. Nc3 {[%clk 0:00:31]} 34... Bh6 {[%clk 0:01:40]} 35.
exd6+ {[%clk 0:00:25.5]} 35... Kd7 {[%clk 0:01:38.2]} 36. Ne4 {[%clk 0:00:24.7]}
36... Bf3 {[%clk 0:01:35.5]} 37. Nf6+ {[%clk 0:00:24]} 37... Kxd6 {[%clk
0:01:34.7]} 38. Nxh5 {[%clk 0:00:24]} 1-0

[Event "*** Titled Tuesday Blitz"]
[Site "Chess.com"]
[Date "2020.05.12"]
[Round "8"]
[White "OhanyanEminChess"]
[Black "PowerThinking2650"]
[Result "1-0"]
[WhiteElo "2451"]
[BlackElo "2278"]
[TimeControl "180+1"]
[EndTime "11:31:20 PDT"]
[Termination "OhanyanEminChess won by resignation"]

1. e4 {[%clk 0:03:00.8]} 1... e5 {[%clk 0:02:59.5]} 2. Nf3 {[%clk 0:03:00.3]}
2... Nc6 {[%clk 0:02:59.6]} 3. Bc4 {[%clk 0:02:59.7]} 3... Nf6 {[%clk 0:02:59]}
4. d4 {[%clk 0:02:56.6]} 4... exd4 {[%clk 0:02:57.4]} 5. O-O {[%clk 0:02:55.5]}
5... Nxe4 {[%clk 0:02:56.6]} 6. Re1 {[%clk 0:02:55.3]} 6... d5 {[%clk 0:02:57]}
7. Bxd5 {[%clk 0:02:55.6]} 7... Qxd5 {[%clk 0:02:57.9]} 8. Nc3 {[%clk
0:02:55.5]} 8... Qa5 {[%clk 0:02:58.3]} 9. Nxe4 {[%clk 0:02:54.8]} 9... Be6
{[%clk 0:02:58.1]} 10. Bg5 {[%clk 0:02:54.9]} 10... h6 {[%clk 0:02:51.8]} 11.
Bh4 {[%clk 0:02:54.2]} 11... g5 {[%clk 0:02:45.7]} 12. Nf6+ {[%clk 0:02:53.8]}
12... Ke7 {[%clk 0:02:42.2]} 13. b4 {[%clk 0:02:53.5]} 13... Qf5 {[%clk
0:02:19.4]} 14. b5 {[%clk 0:02:53]} 14... gxh4 {[%clk 0:01:55]} 15. bxc6 {[%clk
0:02:51.2]} 15... Qxf6 {[%clk 0:01:30]} 16. cxb7 {[%clk 0:02:50.4]} 16... Rb8
{[%clk 0:01:29.1]} 17. Nxd4 {[%clk 0:02:50]} 17... Ke8 {[%clk 0:01:22.7]} 18.
Nc6 {[%clk 0:02:45.3]} 18... Bc5 {[%clk 0:01:03.2]} 19. Nxb8 {[%clk 0:02:15.9]}
19... Qxf2+ {[%clk 0:00:56.3]} 20. Kh1 {[%clk 0:02:15.7]} 20... h3 {[%clk
0:00:37.7]} 21. Qf3 {[%clk 0:01:25.4]} 21... hxg2+ {[%clk 0:00:23.4]} 22. Qxg2
{[%clk 0:01:25.3]} 22... Kf8 {[%clk 0:00:07.7]} 23. Qxf2 {[%clk 0:01:23.6]}
23... Bxf2 {[%clk 0:00:07.8]} 24. Rxe6 {[%clk 0:01:24.1]} 24... fxe6 {[%clk
0:00:07.7]} 25. Nd7+ {[%clk 0:01:24.1]} 25... Ke7 {[%clk 0:00:07.7]} 26. b8=Q
{[%clk 0:01:25]} 1-0

[Event "*** Titled Tuesday Blitz"]
[Site "Chess.com"]
[Date "2020.05.12"]
[Round "8"]
[White "Shushik"]
[Black "chessuriel"]
[Result "1-0"]
[WhiteElo "2093"]
[BlackElo "2142"]
[TimeControl "180+1"]
[EndTime "11:31:22 PDT"]
[Termination "Shushik won by resignation"]

1. e4 {[%clk 0:03:00.9]} 1... c5 {[%clk 0:02:59.7]} 2. Nf3 {[%clk 0:03:00.9]}
2... e6 {[%clk 0:02:59.9]} 3. d4 {[%clk 0:03:00.9]} 3... cxd4 {[%clk 0:03:00.8]}
4. Nxd4 {[%clk 0:03:01]} 4... Nc6 {[%clk 0:03:01.1]} 5. Nc3 {[%clk 0:03:00.6]}
5... Qc7 {[%clk 0:03:01.2]} 6. Be3 {[%clk 0:02:55.3]} 6... Nf6 {[%clk
0:03:00.6]} 7. Qf3 {[%clk 0:02:52.8]} 7... a6 {[%clk 0:02:58.4]} 8. Nxc6 {[%clk
0:02:51.9]} 8... bxc6 {[%clk 0:02:58]} 9. Qg3 {[%clk 0:02:51.1]} 9... Qxg3
{[%clk 0:02:56.6]} 10. hxg3 {[%clk 0:02:51.4]} 10... Rb8 {[%clk 0:02:55.7]} 11.
O-O-O {[%clk 0:02:50]} 11... Bb4 {[%clk 0:02:53.3]} 12. e5 {[%clk 0:02:41.7]}
12... Bxc3 {[%clk 0:02:43.3]} 13. bxc3 {[%clk 0:02:40.7]} 13... Nd5 {[%clk
0:02:43.1]} 14. Bd4 {[%clk 0:02:34.8]} 14... c5 {[%clk 0:02:33.9]} 15. Bxc5
{[%clk 0:02:33.5]} 15... Nxc3 {[%clk 0:02:33.6]} 16. Rd4 {[%clk 0:02:23.3]}
16... Rb1+ {[%clk 0:02:23.6]} 17. Kd2 {[%clk 0:02:22.6]} 17... Nd5 {[%clk
0:02:13.4]} 18. g4 {[%clk 0:02:03.3]} 18... Bb7 {[%clk 0:01:58.6]} 19. g5 {[%clk
0:01:46.8]} 19... Ne7 {[%clk 0:01:50.2]} 20. Rb4 {[%clk 0:01:27.9]} 20... Rxb4
{[%clk 0:01:47.6]} 21. Bxb4 {[%clk 0:01:27.7]} 21... Nd5 {[%clk 0:01:25.9]} 22.
Bd6 {[%clk 0:01:24.6]} 22... f6 {[%clk 0:01:21.2]} 23. g6 {[%clk 0:01:13.5]}
23... h6 {[%clk 0:00:39.5]} 24. Bd3 {[%clk 0:01:08.6]} 24... Rg8 {[%clk
0:00:29.2]} 25. Rb1 {[%clk 0:01:05.9]} 25... Bc8 {[%clk 0:00:26]} 26. Rb8 {[%clk
0:01:02.7]} 26... Kd8 {[%clk 0:00:24.8]} 27. Bxa6 {[%clk 0:01:01]} 1-0

[Event "*** Titled Tuesday Blitz"]
[Site "Chess.com"]
[Date "2020.05.12"]
[Round "8"]
[White "mshuaau0"]
[Black "spela91"]
[Result "1-0"]
[WhiteElo "2174"]
[BlackElo "2080"]
[TimeControl "180+1"]
[EndTime "11:31:32 PDT"]
[Termination "mshuaau0 won by resignation"]

1. e4 {[%clk 0:03:00.9]} 1... e5 {[%clk 0:02:59.2]} 2. Nf3 {[%clk 0:03:00.8]}
2... Nc6 {[%clk 0:02:58.8]} 3. Bc4 {[%clk 0:02:59.2]} 3... Bc5 {[%clk
0:02:57.5]} 4. d3 {[%clk 0:02:57.3]} 4... h6 {[%clk 0:02:54.5]} 5. Nc3 {[%clk
0:02:52.1]} 5... Nf6 {[%clk 0:02:50.8]} 6. a3 {[%clk 0:02:51.7]} 6... a6 {[%clk
0:02:48.8]} 7. Qe2 {[%clk 0:02:48.8]} 7... O-O {[%clk 0:02:47.4]} 8. Be3 {[%clk
0:02:48.2]} 8... d6 {[%clk 0:02:24.5]} 9. h3 {[%clk 0:02:46.9]} 9... Nd4 {[%clk
0:02:16.4]} 10. Bxd4 {[%clk 0:02:46.3]} 10... Bxd4 {[%clk 0:02:16.2]} 11. Nxd4
{[%clk 0:02:45.4]} 11... exd4 {[%clk 0:02:16.4]} 12. Nd5 {[%clk 0:02:45.5]}
12... b5 {[%clk 0:01:59.9]} 13. Nxf6+ {[%clk 0:02:30.6]} 13... Qxf6 {[%clk
0:01:59.3]} 14. Bd5 {[%clk 0:02:30]} 14... Rb8 {[%clk 0:01:56]} 15. Qf3 {[%clk
0:02:18.9]} 15... Qe5 {[%clk 0:01:38.9]} 16. Qg3 {[%clk 0:02:13.3]} 16... Bd7
{[%clk 0:01:28.1]} 17. f4 {[%clk 0:02:11.2]} 17... Qe7 {[%clk 0:01:26.5]} 18.
O-O {[%clk 0:02:05.3]} 18... c6 {[%clk 0:01:25.4]} 19. Bb3 {[%clk 0:02:03.5]}
19... c5 {[%clk 0:01:16.9]} 20. f5 {[%clk 0:02:02.2]} 20... Qf6 {[%clk
0:01:15.1]} 21. Bd5 {[%clk 0:01:59.2]} 21... Rfe8 {[%clk 0:01:12.6]} 22. Rf4
{[%clk 0:01:54.3]} 22... Re5 {[%clk 0:01:11.8]} 23. Raf1 {[%clk 0:01:49.7]}
23... Rbe8 {[%clk 0:01:07]} 24. Rg4 {[%clk 0:01:49.3]} 24... Kh7 {[%clk
0:00:59.5]} 25. h4 {[%clk 0:01:35.7]} 25... c4 {[%clk 0:00:54.3]} 26. h5 {[%clk
0:01:34.2]} 26... R8e7 {[%clk 0:00:41.5]} 27. Rg6 {[%clk 0:01:23.7]} 27... Bxf5
{[%clk 0:00:17.4]} 28. Rxf6 {[%clk 0:01:17]} 28... gxf6 {[%clk 0:00:17.7]} 29.
Rxf5 {[%clk 0:01:15.6]} 1-0

[Event "*** Titled Tuesday Blitz"]
[Site "Chess.com"]
[Date "2020.05.12"]
[Round "8"]
[White "dawtonlms"]
[Black "VladimirBugayev"]
[Result "1-0"]
[WhiteElo "2410"]
[BlackElo "2144"]
[TimeControl "180+1"]
[EndTime "11:31:33 PDT"]
[Termination "dawtonlms won by resignation"]

1. e4 {[%clk 0:03:00.9]} 1... c6 {[%clk 0:02:59.7]} 2. d4 {[%clk 0:02:59.8]}
2... d5 {[%clk 0:02:59.7]} 3. exd5 {[%clk 0:02:59.2]} 3... cxd5 {[%clk
0:02:59.4]} 4. c4 {[%clk 0:02:59.9]} 4... Nf6 {[%clk 0:02:59.1]} 5. Nc3 {[%clk
0:02:59.7]} 5... e6 {[%clk 0:02:59.4]} 6. Nf3 {[%clk 0:02:58.9]} 6... Bb4 {[%clk
0:02:58.5]} 7. cxd5 {[%clk 0:02:58]} 7... Nxd5 {[%clk 0:02:57.8]} 8. Bd2 {[%clk
0:02:58.2]} 8... Be7 {[%clk 0:02:57]} 9. Bd3 {[%clk 0:02:57.1]} 9... O-O {[%clk
0:02:54]} 10. a3 {[%clk 0:02:56.4]} 10... Nc6 {[%clk 0:02:39.9]} 11. O-O {[%clk
0:02:55.5]} 11... Bf6 {[%clk 0:02:28.4]} 12. Qe2 {[%clk 0:02:34.9]} 12... g6
{[%clk 0:02:23.6]} 13. Bh6 {[%clk 0:02:33.1]} 13... Re8 {[%clk 0:02:20.1]} 14.
Rad1 {[%clk 0:02:06]} 14... Bg7 {[%clk 0:01:59.9]} 15. Bxg7 {[%clk 0:01:59.8]}
15... Kxg7 {[%clk 0:01:59.5]} 16. Bc4 {[%clk 0:01:52.5]} 16... Qf6 {[%clk
0:01:30.8]} 17. Ne5 {[%clk 0:01:48]} 17... Nxc3 {[%clk 0:01:22.9]} 18. bxc3
{[%clk 0:01:47.3]} 18... Ne7 {[%clk 0:01:16.3]} 19. f4 {[%clk 0:01:43.6]} 19...
h5 {[%clk 0:01:06.8]} 20. Bb5 {[%clk 0:01:36.9]} 20... Rd8 {[%clk 0:01:05.8]}
21. g4 {[%clk 0:01:22.5]} 21... hxg4 {[%clk 0:01:00.9]} 22. Nxg4 {[%clk
0:01:22.4]} 22... Qf5 {[%clk 0:01:00.9]} 23. Bd3 {[%clk 0:01:21.9]} 23... Qh5
{[%clk 0:00:59.2]} 24. Qg2 {[%clk 0:01:19.5]} 24... Nd5 {[%clk 0:00:40.2]} 25.
c4 {[%clk 0:01:09.2]} 25... Nf6 {[%clk 0:00:39.7]} 26. Ne5 {[%clk 0:01:06]}
26... Rxd4 {[%clk 0:00:29.3]} 27. Bxg6 {[%clk 0:01:05.7]} 27... Qxd1 {[%clk
0:00:23.2]} 28. Bh5+ {[%clk 0:01:01.9]} 28... Kf8 {[%clk 0:00:20.7]} 29. Bxd1
{[%clk 0:01:01.7]} 1-0

[Event "*** Titled Tuesday Blitz"]
[Site "Chess.com"]
[Date "2020.05.12"]
[Round "8"]
[White "Jospem"]
[Black "KuzubovYuriy"]
[Result "1-0"]
[WhiteElo "2861"]
[BlackElo "2685"]
[TimeControl "180+1"]
[EndTime "11:31:34 PDT"]
[Termination "Jospem won by resignation"]

1. e4 {[%clk 0:03:00.9]} 1... c6 {[%clk 0:02:59.9]} 2. Nf3 {[%clk 0:03:00]} 2...
d5 {[%clk 0:03:00.2]} 3. d3 {[%clk 0:03:00.9]} 3... Nf6 {[%clk 0:02:52.5]} 4.
Qe2 {[%clk 0:03:00.4]} 4... Bg4 {[%clk 0:02:47.3]} 5. h3 {[%clk 0:02:50.5]} 5...
Bxf3 {[%clk 0:02:41.4]} 6. Qxf3 {[%clk 0:02:51.4]} 6... Nbd7 {[%clk 0:02:40.6]}
7. Nd2 {[%clk 0:02:50.7]} 7... g6 {[%clk 0:02:39.1]} 8. c3 {[%clk 0:02:43.7]}
8... e6 {[%clk 0:02:36.5]} 9. Be2 {[%clk 0:02:42.2]} 9... Bg7 {[%clk 0:02:34.8]}
10. O-O {[%clk 0:02:42.3]} 10... Qc7 {[%clk 0:02:32.3]} 11. d4 {[%clk
0:02:40.8]} 11... a6 {[%clk 0:02:30.3]} 12. e5 {[%clk 0:02:37.6]} 12... Ng8
{[%clk 0:02:30]} 13. Qe3 {[%clk 0:02:37.9]} 13... Ne7 {[%clk 0:02:28.8]} 14. g4
{[%clk 0:02:37.9]} 14... h5 {[%clk 0:02:12.1]} 15. f4 {[%clk 0:02:36]} 15...
hxg4 {[%clk 0:01:58.9]} 16. hxg4 {[%clk 0:02:36.9]} 16... c5 {[%clk 0:01:50.8]}
17. Nf3 {[%clk 0:02:36]} 17... Nc6 {[%clk 0:01:50.3]} 18. Bd2 {[%clk 0:02:35.6]}
18... b5 {[%clk 0:01:30.8]} 19. dxc5 {[%clk 0:02:21.2]} 19... g5 {[%clk
0:00:57]} 20. Nxg5 {[%clk 0:02:16.9]} 20... Ndxe5 {[%clk 0:00:52.6]} 21. fxe5
{[%clk 0:02:06]} 21... Nxe5 {[%clk 0:00:49]} 22. Nxf7 {[%clk 0:01:16]} 22... d4
{[%clk 0:00:23.7]} 23. Qg3 {[%clk 0:00:49.7]} 23... Nf3+ {[%clk 0:00:19.8]} 24.
Rxf3 {[%clk 0:00:49.3]} 1-0

[Event "*** Titled Tuesday Blitz"]
[Site "Chess.com"]
[Date "2020.05.12"]
[Round "8"]
[White "Alomaterapia"]
[Black "WildBizon"]
[Result "1-0"]
[WhiteElo "2500"]
[BlackElo "2653"]
[TimeControl "180+1"]
[EndTime "11:31:34 PDT"]
[Termination "Alomaterapia won by resignation"]

1. d4 {[%clk 0:03:00.9]} 1... Nf6 {[%clk 0:02:58.4]} 2. Bg5 {[%clk 0:02:59.3]}
2... Ne4 {[%clk 0:02:58.1]} 3. h4 {[%clk 0:02:58.7]} 3... c5 {[%clk 0:02:57.6]}
4. dxc5 {[%clk 0:02:57.3]} 4... h6 {[%clk 0:02:53.1]} 5. Nd2 {[%clk 0:02:47.4]}
5... Nxc5 {[%clk 0:02:43.3]} 6. Bf4 {[%clk 0:02:42.6]} 6... Nc6 {[%clk
0:02:42.6]} 7. Ngf3 {[%clk 0:02:38.4]} 7... d5 {[%clk 0:02:37.5]} 8. e3 {[%clk
0:02:38.2]} 8... Bg4 {[%clk 0:02:36.3]} 9. Be2 {[%clk 0:02:38.1]} 9... e6 {[%clk
0:02:35.4]} 10. Nd4 {[%clk 0:02:32.1]} 10... Bxe2 {[%clk 0:02:32.8]} 11. Qxe2
{[%clk 0:02:33]} 11... Rc8 {[%clk 0:02:30.8]} 12. Nxc6 {[%clk 0:01:54.6]} 12...
Rxc6 {[%clk 0:02:29.9]} 13. c3 {[%clk 0:01:46.9]} 13... Na4 {[%clk 0:02:23.5]}
14. Nb3 {[%clk 0:01:36.6]} 14... Bd6 {[%clk 0:02:16.4]} 15. Bxd6 {[%clk
0:01:30.3]} 15... Qd7 {[%clk 0:02:16.5]} 16. Ba3 {[%clk 0:01:23.1]} 16... f6
{[%clk 0:02:14.6]} 17. Qg4 {[%clk 0:01:13.5]} 17... Nb6 {[%clk 0:02:09.4]} 18.
Qg6+ {[%clk 0:01:12.5]} 18... Kd8 {[%clk 0:02:08.6]} 19. Nd4 {[%clk 0:01:11.1]}
19... Rc8 {[%clk 0:02:06.3]} 20. O-O {[%clk 0:01:00.4]} 20... Nc4 {[%clk
0:02:01.7]} 21. Nc2 {[%clk 0:00:57.7]} 21... Ne5 {[%clk 0:01:57.4]} 22. Qg3
{[%clk 0:00:56.7]} 22... g5 {[%clk 0:01:57.4]} 23. h5 {[%clk 0:00:51.9]} 23...
Nc4 {[%clk 0:01:53.1]} 24. Rad1 {[%clk 0:00:48.5]} 24... Ke8 {[%clk 0:01:50.5]}
25. e4 {[%clk 0:00:48]} 25... Kf7 {[%clk 0:01:49.9]} 26. exd5 {[%clk 0:00:47.5]}
26... exd5 {[%clk 0:01:50]} 27. Rfe1 {[%clk 0:00:47.4]} 27... Rhe8 {[%clk
0:01:49.2]} 28. Qf3 {[%clk 0:00:45.2]} 28... Ne5 {[%clk 0:01:45]} 29. Qxd5+
{[%clk 0:00:41.2]} 29... Qxd5 {[%clk 0:01:45]} 30. Rxd5 {[%clk 0:00:42.1]} 30...
Nf3+ {[%clk 0:01:45.9]} 31. gxf3 {[%clk 0:00:42.4]} 1-0